[Event "Late-Titled-Tuesday-Blitz-March-05-2024"]
[Site "Chess.com"]
[Date "2024.03.05"]
[Round "1"]
[White "Qvalda"]
[Black "MightyGMpretender"]
[Result "0-1"]
[WhiteElo "2448"]
[BlackElo "2759"]
[TimeControl "180+1"]
[EndTime "14:05:24 PST"]
[Termination "MightyGMpretender won on time"]

1. d4 {[%clk 0:02:59.3]} 1... Nf6 {[%clk 0:03:00.3]} 2. c4 {[%clk 0:02:58.5]}
2... g6 {[%clk 0:03:00.8]} 3. Nf3 {[%clk 0:02:57.6]} 3... Bg7 {[%clk 0:03:01]}
4. e3 {[%clk 0:02:58.2]} 4... O-O {[%clk 0:03:01.3]} 5. Be2 {[%clk 0:02:58.7]}
5... d6 {[%clk 0:03:01.7]} 6. O-O {[%clk 0:02:58.9]} 6... Nc6 {[%clk 0:03:02.1]}
7. Nc3 {[%clk 0:02:58.7]} 7... e5 {[%clk 0:03:02.5]} 8. Qc2 {[%clk 0:02:55.7]}
8... Bf5 {[%clk 0:03:01.7]} 9. e4 {[%clk 0:02:46.1]} 9... Bg4 {[%clk 0:02:48.6]}
10. d5 {[%clk 0:02:20]} 10... Bxf3 {[%clk 0:02:47.2]} 11. Bxf3 {[%clk
0:02:19.8]} 11... Nd4 {[%clk 0:02:47.9]} 12. Qd3 {[%clk 0:02:18.9]} 12... Nd7
{[%clk 0:02:47.4]} 13. Bd1 {[%clk 0:02:16.7]} 13... Nc5 {[%clk 0:02:43.9]} 14.
Qd2 {[%clk 0:02:15.4]} 14... a5 {[%clk 0:02:42.3]} 15. b3 {[%clk 0:02:13.1]}
15... f5 {[%clk 0:02:41.5]} 16. Re1 {[%clk 0:02:05.4]} 16... f4 {[%clk
0:02:41.7]} 17. Bg4 {[%clk 0:01:56.1]} 17... h5 {[%clk 0:02:41.2]} 18. Bh3
{[%clk 0:01:55.9]} 18... g5 {[%clk 0:02:38.9]} 19. Be6+ {[%clk 0:01:30]} 19...
Kh7 {[%clk 0:02:37.2]} 20. Bb2 {[%clk 0:01:25.8]} 20... g4 {[%clk 0:02:35.7]}
21. Ne2 {[%clk 0:01:21.1]} 21... Ndxe6 {[%clk 0:02:31.3]} 22. dxe6 {[%clk
0:01:20.7]} 22... Nxe6 {[%clk 0:02:31.6]} 23. Nc3 {[%clk 0:01:02.6]} 23... f3
{[%clk 0:02:29.7]} 24. g3 {[%clk 0:01:02.3]} 24... Bh6 {[%clk 0:02:29.8]} 25.
Qd5 {[%clk 0:01:00.9]} 25... Qc8 {[%clk 0:02:23.9]} 26. Nb5 {[%clk 0:00:52.4]}
26... c6 {[%clk 0:02:22.8]} 27. Qxd6 {[%clk 0:00:52.5]} 27... cxb5 {[%clk
0:02:23.1]} 28. cxb5 {[%clk 0:00:53.2]} 28... Nd4 {[%clk 0:02:21.5]} 29. Qxe5
{[%clk 0:00:48.3]} 29... Ne2+ {[%clk 0:02:19.7]} 30. Rxe2 {[%clk 0:00:48]} 30...
fxe2 {[%clk 0:02:20]} 31. Re1 {[%clk 0:00:28.6]} 31... Qe8 {[%clk 0:02:16.8]}
32. Qc7+ {[%clk 0:00:20]} 32... Rf7 {[%clk 0:02:15.4]} 33. Qc3 {[%clk
0:00:19.8]} 33... Qxe4 {[%clk 0:02:12.5]} 34. b6 {[%clk 0:00:15.9]} 34... Raf8
{[%clk 0:02:10.4]} 35. Ba3 {[%clk 0:00:01.7]} 35... Qg2+ {[%clk 0:02:06.4]} 36.
Kxg2 {[%clk 0:00:01.1]} 36... Rxf2+ {[%clk 0:02:07.2]} 37. Kg1 {[%clk
0:00:01.5]} 37... Rf1+ {[%clk 0:02:07.7]} 0-1

[Event "Late-Titled-Tuesday-Blitz-March-05-2024"]
[Site "Chess.com"]
[Date "2024.03.05"]
[Round "1"]
[White "crazyluzhinTh3"]
[Black "shirovin"]
[Result "1-0"]
[WhiteElo "2545"]
[BlackElo "2054"]
[TimeControl "180+1"]
[EndTime "14:05:29 PST"]
[Termination "crazyluzhinTh3 won on time"]

1. e4 {[%clk 0:03:00.9]} 1... c5 {[%clk 0:02:58.5]} 2. Nf3 {[%clk 0:03:01.3]}
2... d6 {[%clk 0:02:58.6]} 3. Bc4 {[%clk 0:03:01.5]} 3... Nf6 {[%clk 0:02:56.5]}
4. Qe2 {[%clk 0:03:02]} 4... e6 {[%clk 0:02:46.8]} 5. Bb3 {[%clk 0:03:01.3]}
5... Be7 {[%clk 0:02:45.5]} 6. O-O {[%clk 0:03:01.9]} 6... O-O {[%clk
0:02:45.6]} 7. c3 {[%clk 0:03:02.5]} 7... Nc6 {[%clk 0:02:36.8]} 8. d4 {[%clk
0:03:02.2]} 8... cxd4 {[%clk 0:02:35.3]} 9. cxd4 {[%clk 0:03:03.1]} 9... d5
{[%clk 0:02:35.3]} 10. e5 {[%clk 0:03:03.6]} 10... Ne4 {[%clk 0:02:35]} 11. Nc3
{[%clk 0:03:04.3]} 11... Nxc3 {[%clk 0:02:30.9]} 12. bxc3 {[%clk 0:03:05.2]}
12... Bd7 {[%clk 0:02:30.3]} 13. Bc2 {[%clk 0:03:05.5]} 13... Na5 {[%clk
0:02:24.1]} 14. Qd3 {[%clk 0:03:05.6]} 14... g6 {[%clk 0:02:23.8]} 15. Qe3
{[%clk 0:03:06.1]} 15... Re8 {[%clk 0:02:16.4]} 16. h4 {[%clk 0:03:05.3]} 16...
Nc4 {[%clk 0:02:02.2]} 17. Qf4 {[%clk 0:03:04.4]} 17... Bf8 {[%clk 0:01:55.8]}
18. h5 {[%clk 0:03:04.1]} 18... Rc8 {[%clk 0:01:45.1]} 19. hxg6 {[%clk
0:02:56.3]} 19... fxg6 {[%clk 0:01:25.8]} 20. Ng5 {[%clk 0:02:56.5]} 20... Qe7
{[%clk 0:01:16.8]} 21. Qg4 {[%clk 0:02:50.8]} 21... b5 {[%clk 0:00:54.2]} 22. g3
{[%clk 0:02:44]} 22... b4 {[%clk 0:00:49.6]} 23. cxb4 {[%clk 0:02:42.5]} 23...
Nxe5 {[%clk 0:00:48.3]} 24. dxe5 {[%clk 0:02:42.3]} 24... Rxc2 {[%clk
0:00:47.1]} 25. Bf4 {[%clk 0:02:39.3]} 25... Bg7 {[%clk 0:00:40.7]} 26. a3
{[%clk 0:02:38]} 26... Rec8 {[%clk 0:00:39.1]} 27. Nf3 {[%clk 0:02:32.3]} 27...
R8c4 {[%clk 0:00:29.6]} 28. Rfd1 {[%clk 0:02:26.9]} 28... Re4 {[%clk 0:00:17.4]}
29. Rac1 {[%clk 0:02:18.3]} 29... Ree2 {[%clk 0:00:14.1]} 30. Nd4 {[%clk
0:02:12.3]} 30... Rxc1 {[%clk 0:00:11.5]} 31. Rxc1 {[%clk 0:02:12.5]} 31... Rb2
{[%clk 0:00:08.3]} 32. Rc7 {[%clk 0:02:11.8]} 32... Qe8 {[%clk 0:00:06.8]} 33.
Rxa7 {[%clk 0:02:04.8]} 33... Rb1+ {[%clk 0:00:04.7]} 34. Kg2 {[%clk 0:02:03.6]}
34... h6 {[%clk 0:00:04]} 35. Be3 {[%clk 0:01:55.7]} 1-0

[Event "Late-Titled-Tuesday-Blitz-March-05-2024"]
[Site "Chess.com"]
[Date "2024.03.05"]
[Round "1"]
[White "Agibileg"]
[Black "carloseduar100"]
[Result "1-0"]
[WhiteElo "2650"]
[BlackElo "2364"]
[TimeControl "180+1"]
[EndTime "14:05:30 PST"]
[Termination "Agibileg won by checkmate"]

1. d4 {[%clk 0:03:00.9]} 1... d5 {[%clk 0:02:48.1]} 2. c4 {[%clk 0:03:00.7]}
2... e5 {[%clk 0:02:48]} 3. cxd5 {[%clk 0:02:47.6]} 3... Qxd5 {[%clk 0:02:44.4]}
4. e3 {[%clk 0:02:45.5]} 4... exd4 {[%clk 0:02:43.1]} 5. exd4 {[%clk 0:02:46.4]}
5... Nc6 {[%clk 0:02:42.7]} 6. Nf3 {[%clk 0:02:45.1]} 6... Bg4 {[%clk
0:02:03.9]} 7. Nc3 {[%clk 0:02:44.8]} 7... Bb4 {[%clk 0:01:55]} 8. Be2 {[%clk
0:02:44.5]} 8... Nf6 {[%clk 0:01:43.4]} 9. O-O {[%clk 0:02:43.9]} 9... Qh5
{[%clk 0:01:43.5]} 10. h3 {[%clk 0:02:32]} 10... Bxh3 {[%clk 0:01:43]} 11. gxh3
{[%clk 0:02:29.8]} 11... Qxh3 {[%clk 0:01:43.9]} 12. Ng5 {[%clk 0:02:26.1]}
12... Qh4 {[%clk 0:01:40.4]} 13. Bf3 {[%clk 0:02:04.5]} 13... Bd6 {[%clk
0:01:33.5]} 14. Re1+ {[%clk 0:01:55]} 14... Ne7 {[%clk 0:01:25.8]} 15. Qa4+
{[%clk 0:01:49.5]} 15... Kf8 {[%clk 0:00:59]} 16. Qc4 {[%clk 0:01:39.7]} 16...
Ke8 {[%clk 0:00:27.1]} 17. Qxf7+ {[%clk 0:01:31.1]} 17... Kd7 {[%clk 0:00:25.8]}
18. Qe6+ {[%clk 0:01:23.7]} 18... Ke8 {[%clk 0:00:25.8]} 19. Bxb7 {[%clk
0:01:23.5]} 19... Ng4 {[%clk 0:00:13.8]} 20. Bc6+ {[%clk 0:01:18]} 20... Kf8
{[%clk 0:00:12.7]} 21. Qf7# {[%clk 0:01:17.4]} 1-0

[Event "Late-Titled-Tuesday-Blitz-March-05-2024"]
[Site "Chess.com"]
[Date "2024.03.05"]
[Round "1"]
[White "aranibos"]
[Black "prime-morty"]
[Result "0-1"]
[WhiteElo "2286"]
[BlackElo "2603"]
[TimeControl "180+1"]
[EndTime "14:05:46 PST"]
[Termination "prime-morty won by resignation"]

1. d4 {[%clk 0:02:58.6]} 1... Nf6 {[%clk 0:02:59.1]} 2. Nf3 {[%clk 0:02:58.3]}
2... e6 {[%clk 0:02:59.5]} 3. Bg5 {[%clk 0:02:58.2]} 3... c5 {[%clk 0:02:59.2]}
4. e3 {[%clk 0:02:55.6]} 4... h6 {[%clk 0:02:55.7]} 5. Bxf6 {[%clk 0:02:52.4]}
5... Qxf6 {[%clk 0:02:55.8]} 6. c3 {[%clk 0:02:52.1]} 6... Nc6 {[%clk
0:02:53.8]} 7. Nbd2 {[%clk 0:02:51.9]} 7... d5 {[%clk 0:02:53.9]} 8. Bd3 {[%clk
0:02:51.7]} 8... Bd6 {[%clk 0:02:51.4]} 9. O-O {[%clk 0:02:37.9]} 9... O-O
{[%clk 0:02:51.1]} 10. e4 {[%clk 0:02:34.9]} 10... cxd4 {[%clk 0:02:49.3]} 11.
cxd4 {[%clk 0:02:27.3]} 11... Nxd4 {[%clk 0:02:41.1]} 12. Nxd4 {[%clk 0:02:19]}
12... Qxd4 {[%clk 0:02:42]} 13. Nf3 {[%clk 0:02:15.4]} 13... Qf6 {[%clk
0:02:39.6]} 14. Qe2 {[%clk 0:01:59.6]} 14... dxe4 {[%clk 0:02:16.8]} 15. Qxe4
{[%clk 0:01:58]} 15... g6 {[%clk 0:02:17.3]} 16. Qe2 {[%clk 0:01:41.2]} 16...
Rd8 {[%clk 0:02:02.1]} 17. Rad1 {[%clk 0:01:34.8]} 17... Bf8 {[%clk 0:02:02.1]}
18. Be4 {[%clk 0:01:32.1]} 18... Bg7 {[%clk 0:01:56.4]} 19. Rxd8+ {[%clk
0:01:27.4]} 19... Qxd8 {[%clk 0:01:57.3]} 20. Rd1 {[%clk 0:01:25.7]} 20... Qc7
{[%clk 0:01:54.9]} 21. Qd2 {[%clk 0:01:14.3]} 21... f5 {[%clk 0:01:31.7]} 22.
Bb1 {[%clk 0:00:59.4]} 22... b6 {[%clk 0:01:25.7]} 23. Rc1 {[%clk 0:00:49.1]}
23... Qd7 {[%clk 0:01:19.1]} 24. Qe2 {[%clk 0:00:36.5]} 24... Bb7 {[%clk
0:01:16]} 25. Ne5 {[%clk 0:00:36.8]} 25... Qd5 {[%clk 0:01:11.4]} 26. f4 {[%clk
0:00:28.2]} 26... Qd4+ {[%clk 0:01:05.4]} 27. Kf1 {[%clk 0:00:25.7]} 27... Qxf4+
{[%clk 0:01:05.1]} 28. Nf3 {[%clk 0:00:24]} 28... Qxc1+ {[%clk 0:01:04.8]} 0-1

[Event "Late-Titled-Tuesday-Blitz-March-05-2024"]
[Site "Chess.com"]
[Date "2024.03.05"]
[Round "1"]
[White "Bala-Afiada"]
[Black "TokChess"]
[Result "0-1"]
[WhiteElo "1876"]
[BlackElo "2536"]
[TimeControl "180+1"]
[EndTime "14:05:47 PST"]
[Termination "TokChess won by resignation"]

1. d4 {[%clk 0:02:59.3]} 1... d5 {[%clk 0:02:48.6]} 2. c4 {[%clk 0:02:58.5]}
2... c6 {[%clk 0:02:48.7]} 3. Nf3 {[%clk 0:02:56.4]} 3... Nf6 {[%clk 0:02:48.8]}
4. Qc2 {[%clk 0:02:55.4]} 4... dxc4 {[%clk 0:02:47.1]} 5. Qxc4 {[%clk
0:02:55.4]} 5... Bf5 {[%clk 0:02:47.3]} 6. Nbd2 {[%clk 0:02:46.8]} 6... e6
{[%clk 0:02:45.9]} 7. g3 {[%clk 0:02:45.8]} 7... Nbd7 {[%clk 0:02:44.8]} 8. Bg2
{[%clk 0:02:43.1]} 8... Be7 {[%clk 0:02:44.7]} 9. O-O {[%clk 0:02:43]} 9... O-O
{[%clk 0:02:39.6]} 10. Nh4 {[%clk 0:02:18.8]} 10... Bg4 {[%clk 0:02:33.2]} 11.
h3 {[%clk 0:02:11.3]} 11... Bh5 {[%clk 0:02:32.6]} 12. e4 {[%clk 0:01:59.9]}
12... Nb6 {[%clk 0:02:19.7]} 13. Qc2 {[%clk 0:01:59.5]} 13... Qxd4 {[%clk
0:02:12.5]} 14. g4 {[%clk 0:01:49.6]} 14... Bg6 {[%clk 0:02:08.3]} 15. Nxg6
{[%clk 0:01:49.7]} 15... hxg6 {[%clk 0:02:07.5]} 16. Nb3 {[%clk 0:01:42.8]}
16... Qc4 {[%clk 0:02:06.8]} 17. Qxc4 {[%clk 0:01:24.9]} 17... Nxc4 {[%clk
0:02:06.6]} 18. e5 {[%clk 0:01:25.4]} 18... Nxe5 {[%clk 0:02:03.9]} 19. Bf4
{[%clk 0:01:24.1]} 19... Nd3 {[%clk 0:02:01.7]} 20. Bg5 {[%clk 0:01:22.2]} 20...
Rfd8 {[%clk 0:01:55.2]} 21. f4 {[%clk 0:01:01.7]} 21... Kf8 {[%clk 0:01:51]} 22.
f5 {[%clk 0:01:01.6]} 22... gxf5 {[%clk 0:01:49.2]} 23. gxf5 {[%clk 0:01:02.5]}
23... e5 {[%clk 0:01:48.8]} 24. Na5 {[%clk 0:00:54.1]} 24... Rab8 {[%clk
0:01:40.4]} 25. b3 {[%clk 0:00:47.3]} 25... Nd5 {[%clk 0:01:36.5]} 26. Bxe7+
{[%clk 0:00:46.4]} 26... Kxe7 {[%clk 0:01:34.8]} 27. Rad1 {[%clk 0:00:43.2]}
27... N5f4 {[%clk 0:01:25.4]} 28. Rf3 {[%clk 0:00:35.7]} 28... Kf6 {[%clk
0:01:20.3]} 29. Nc4 {[%clk 0:00:31.7]} 29... Nxg2 {[%clk 0:01:16.5]} 30. Kxg2
{[%clk 0:00:31.9]} 30... Nf4+ {[%clk 0:01:14.7]} 31. Rxf4 {[%clk 0:00:21.8]}
31... Rxd1 {[%clk 0:01:14.4]} 0-1

[Event "Late-Titled-Tuesday-Blitz-March-05-2024"]
[Site "Chess.com"]
[Date "2024.03.05"]
[Round "1"]
[White "WindWhistler11"]
[Black "zano2023"]
[Result "1-0"]
[WhiteElo "2549"]
[BlackElo "2114"]
[TimeControl "180+1"]
[EndTime "14:05:52 PST"]
[Termination "WindWhistler11 won on time"]

1. Nf3 {[%clk 0:03:00.9]} 1... d5 {[%clk 0:02:41.7]} 2. d3 {[%clk 0:03:01.8]}
2... Nf6 {[%clk 0:02:40.1]} 3. Nbd2 {[%clk 0:03:02.1]} 3... Bg4 {[%clk
0:02:37.3]} 4. e4 {[%clk 0:03:01.9]} 4... e6 {[%clk 0:02:36.4]} 5. Be2 {[%clk
0:03:02.2]} 5... c6 {[%clk 0:02:33.7]} 6. O-O {[%clk 0:03:01.7]} 6... Be7 {[%clk
0:02:33.5]} 7. c3 {[%clk 0:02:56.4]} 7... Nbd7 {[%clk 0:02:33]} 8. Qc2 {[%clk
0:02:56.5]} 8... O-O {[%clk 0:02:32.9]} 9. Re1 {[%clk 0:02:56.9]} 9... h6 {[%clk
0:02:29.4]} 10. Bf1 {[%clk 0:02:52.7]} 10... Nb6 {[%clk 0:02:21.7]} 11. a4
{[%clk 0:02:47.2]} 11... a5 {[%clk 0:02:19.5]} 12. h3 {[%clk 0:02:35.8]} 12...
Bh5 {[%clk 0:02:19.2]} 13. Ne5 {[%clk 0:02:27.8]} 13... dxe4 {[%clk 0:02:16.9]}
14. dxe4 {[%clk 0:02:26.6]} 14... Nbd7 {[%clk 0:02:01.2]} 15. Nd3 {[%clk
0:02:10.9]} 15... Bg6 {[%clk 0:02:00]} 16. Qb3 {[%clk 0:02:06.8]} 16... Qb6
{[%clk 0:01:28.5]} 17. Qc2 {[%clk 0:01:58.4]} 17... Nc5 {[%clk 0:01:25.3]} 18.
Ne5 {[%clk 0:01:43.8]} 18... Bh7 {[%clk 0:01:11.9]} 19. Ndc4 {[%clk 0:01:43.7]}
19... Qc7 {[%clk 0:01:04.8]} 20. Bf4 {[%clk 0:01:44.2]} 20... Rfd8 {[%clk
0:00:31.3]} 21. Ng6 {[%clk 0:01:36.4]} 21... Qd7 {[%clk 0:00:14.4]} 22. Rad1
{[%clk 0:01:35.2]} 22... Qe8 {[%clk 0:00:14.4]} 23. Nxe7+ {[%clk 0:01:30.8]}
23... Qxe7 {[%clk 0:00:14.4]} 24. Bd6 {[%clk 0:01:30.8]} 24... Rxd6 {[%clk
0:00:02.1]} 25. Nxd6 {[%clk 0:01:31.7]} 25... Nfxe4 {[%clk 0:00:03]} 26. Nxe4
{[%clk 0:01:22.3]} 26... Bxe4 {[%clk 0:00:03.7]} 27. Rxe4 {[%clk 0:01:20.7]}
27... Nxe4 {[%clk 0:00:03.1]} 28. Qxe4 {[%clk 0:01:21.6]} 1-0

[Event "Late-Titled-Tuesday-Blitz-March-05-2024"]
[Site "Chess.com"]
[Date "2024.03.05"]
[Round "1"]
[White "IlanSchnaider"]
[Black "Supelyel"]
[Result "1-0"]
[WhiteElo "2648"]
[BlackElo "2357"]
[TimeControl "180+1"]
[EndTime "14:05:54 PST"]
[Termination "IlanSchnaider won by resignation"]

1. d4 {[%clk 0:03:00.9]} 1... d6 {[%clk 0:02:52.8]} 2. e4 {[%clk 0:02:58.9]}
2... Nf6 {[%clk 0:02:52.3]} 3. Nc3 {[%clk 0:02:58.8]} 3... Nbd7 {[%clk
0:02:46.4]} 4. Nf3 {[%clk 0:02:54.9]} 4... e5 {[%clk 0:02:46.9]} 5. Bc4 {[%clk
0:02:52.5]} 5... Be7 {[%clk 0:02:44.1]} 6. O-O {[%clk 0:02:52.6]} 6... O-O
{[%clk 0:02:43.8]} 7. Re1 {[%clk 0:02:51.5]} 7... c6 {[%clk 0:02:42.2]} 8. a4
{[%clk 0:02:51.2]} 8... h6 {[%clk 0:02:37.6]} 9. h3 {[%clk 0:02:51.2]} 9... Rb8
{[%clk 0:02:31.9]} 10. a5 {[%clk 0:02:41.5]} 10... b5 {[%clk 0:02:32]} 11. axb6
{[%clk 0:02:36.8]} 11... axb6 {[%clk 0:02:32.9]} 12. Bd3 {[%clk 0:02:28.5]}
12... b5 {[%clk 0:02:27.4]} 13. Ne2 {[%clk 0:02:24.3]} 13... Qc7 {[%clk
0:02:09]} 14. Ng3 {[%clk 0:02:22.2]} 14... Nb6 {[%clk 0:02:03.3]} 15. c3 {[%clk
0:02:22.5]} 15... Re8 {[%clk 0:02:01.5]} 16. Nh4 {[%clk 0:02:15.1]} 16... Bf8
{[%clk 0:01:36.4]} 17. Qf3 {[%clk 0:02:09.5]} 17... Nh7 {[%clk 0:01:00.3]} 18.
Nhf5 {[%clk 0:01:59.1]} 18... Bxf5 {[%clk 0:00:50.3]} 19. Nxf5 {[%clk
0:01:59.2]} 19... Re6 {[%clk 0:00:45.1]} 20. Bc2 {[%clk 0:01:45.6]} 20... c5
{[%clk 0:00:27.7]} 21. Bb3 {[%clk 0:01:41.5]} 21... c4 {[%clk 0:00:28.1]} 22.
Bd1 {[%clk 0:01:41.2]} 22... Rf6 {[%clk 0:00:28.2]} 23. Qg3 {[%clk 0:01:38.4]}
23... Rg6 {[%clk 0:00:28.2]} 24. Qh4 {[%clk 0:01:37.8]} 24... Ng5 {[%clk
0:00:23.5]} 25. Bh5 {[%clk 0:01:23.7]} 25... Re6 {[%clk 0:00:20.5]} 26. Bxg5
{[%clk 0:01:22.4]} 26... hxg5 {[%clk 0:00:21.4]} 27. Qxg5 {[%clk 0:01:22.3]}
27... g6 {[%clk 0:00:22.1]} 28. Bg4 {[%clk 0:01:20.6]} 28... Nd7 {[%clk
0:00:19.6]} 29. Ne3 {[%clk 0:01:11.2]} 29... Ree8 {[%clk 0:00:17.4]} 30. Nd5
{[%clk 0:01:11]} 30... Qd8 {[%clk 0:00:17.6]} 31. Qxd8 {[%clk 0:01:09.8]} 31...
Rbxd8 {[%clk 0:00:18.5]} 32. Bxd7 {[%clk 0:01:10.4]} 1-0

[Event "Late-Titled-Tuesday-Blitz-March-05-2024"]
[Site "Chess.com"]
[Date "2024.03.05"]
[Round "1"]
[White "secretworker2027"]
[Black "Vse_po_kaify"]
[Result "1-0"]
[WhiteElo "2653"]
[BlackElo "2385"]
[TimeControl "180+1"]
[EndTime "14:06:07 PST"]
[Termination "secretworker2027 won on time"]

1. d4 {[%clk 0:03:00.9]} 1... Nf6 {[%clk 0:02:59.6]} 2. Nf3 {[%clk 0:03:00.5]}
2... c5 {[%clk 0:02:58.2]} 3. c3 {[%clk 0:03:00.2]} 3... b6 {[%clk 0:02:53.8]}
4. Bg5 {[%clk 0:02:57.6]} 4... e6 {[%clk 0:02:50.4]} 5. e4 {[%clk 0:02:57.2]}
5... h6 {[%clk 0:02:46.7]} 6. Bh4 {[%clk 0:02:55.4]} 6... g5 {[%clk 0:02:43.9]}
7. Bg3 {[%clk 0:02:52.6]} 7... Nxe4 {[%clk 0:02:43.7]} 8. dxc5 {[%clk
0:02:52.3]} 8... Bxc5 {[%clk 0:02:35]} 9. b4 {[%clk 0:02:49.7]} 9... Nxg3 {[%clk
0:02:30.1]} 10. hxg3 {[%clk 0:02:49.2]} 10... Be7 {[%clk 0:02:30]} 11. Nbd2
{[%clk 0:02:47.9]} 11... Bb7 {[%clk 0:02:28.3]} 12. Bd3 {[%clk 0:02:47]} 12...
Bf6 {[%clk 0:02:19.8]} 13. Rc1 {[%clk 0:02:46]} 13... Kf8 {[%clk 0:02:07.4]} 14.
Ne4 {[%clk 0:02:41.8]} 14... Bxe4 {[%clk 0:01:53.3]} 15. Bxe4 {[%clk 0:02:41.8]}
15... d5 {[%clk 0:01:53.9]} 16. Bd3 {[%clk 0:02:42]} 16... Kg7 {[%clk
0:01:49.2]} 17. O-O {[%clk 0:02:41.5]} 17... Nd7 {[%clk 0:01:44.5]} 18. c4
{[%clk 0:02:41.5]} 18... dxc4 {[%clk 0:01:39.4]} 19. Bxc4 {[%clk 0:02:41.3]}
19... Ne5 {[%clk 0:01:38.1]} 20. Nxe5 {[%clk 0:02:40.2]} 20... Bxe5 {[%clk
0:01:29.9]} 21. Qe2 {[%clk 0:02:37.4]} 21... Qf6 {[%clk 0:01:20.1]} 22. b5
{[%clk 0:02:31.6]} 22... Rac8 {[%clk 0:01:16.4]} 23. Bd3 {[%clk 0:02:31.3]}
23... Bd4 {[%clk 0:01:04.3]} 24. Rc6 {[%clk 0:02:29.8]} 24... Rcd8 {[%clk
0:00:57]} 25. Rc7 {[%clk 0:02:27.7]} 25... h5 {[%clk 0:00:35.3]} 26. Bc4 {[%clk
0:02:19.9]} 26... Rd6 {[%clk 0:00:32.6]} 27. Qf3 {[%clk 0:02:02.6]} 27... Qxf3
{[%clk 0:00:14.9]} 28. gxf3 {[%clk 0:02:02.7]} 28... h4 {[%clk 0:00:15.3]} 29.
Kg2 {[%clk 0:02:02.3]} 29... h3+ {[%clk 0:00:09.8]} 30. Kh2 {[%clk 0:02:02.4]}
30... Rh6 {[%clk 0:00:09.5]} 31. Rd1 {[%clk 0:01:59.1]} 31... Rf6 {[%clk
0:00:07.6]} 32. Kxh3 {[%clk 0:01:56.3]} 32... Rxf3 {[%clk 0:00:07]} 33. Kg4
{[%clk 0:01:45.7]} 33... Rxf2 {[%clk 0:00:07.1]} 34. Bxe6 {[%clk 0:01:45.9]}
34... Rxe6 {[%clk 0:00:06.3]} 35. Rxd4 {[%clk 0:01:45.6]} 35... Rxa2 {[%clk
0:00:06.6]} 36. Rd5 {[%clk 0:01:39.3]} 36... Rg6 {[%clk 0:00:04.5]} 37. Rf5
{[%clk 0:01:39.4]} 37... Ra4+ {[%clk 0:00:01.1]} 38. Kh3 {[%clk 0:01:37.1]}
38... g4+ {[%clk 0:00:02]} 39. Kh4 {[%clk 0:01:36.4]} 39... Rh6+ {[%clk
0:00:01.5]} 40. Kg5 {[%clk 0:01:36.8]} 40... Rf6 {[%clk 0:00:02]} 41. Rxf6
{[%clk 0:01:36.5]} 1-0

[Event "Late-Titled-Tuesday-Blitz-March-05-2024"]
[Site "Chess.com"]
[Date "2024.03.05"]
[Round "1"]
[White "AungTZ"]
[Black "Bilan_Danila"]
[Result "0-1"]
[WhiteElo "2021"]
[BlackElo "2540"]
[TimeControl "180+1"]
[EndTime "14:06:11 PST"]
[Termination "Bilan_Danila won by resignation"]

1. e4 {[%clk 0:02:59.1]} 1... c6 {[%clk 0:02:59.5]} 2. d4 {[%clk 0:02:58.7]}
2... d5 {[%clk 0:03:00.4]} 3. Nc3 {[%clk 0:02:58.6]} 3... b5 {[%clk 0:02:58.9]}
4. a3 {[%clk 0:02:52.6]} 4... e6 {[%clk 0:02:57.7]} 5. Nf3 {[%clk 0:02:52]} 5...
b4 {[%clk 0:02:50.1]} 6. axb4 {[%clk 0:02:50.3]} 6... Bxb4 {[%clk 0:02:51]} 7.
e5 {[%clk 0:02:40.6]} 7... a5 {[%clk 0:02:45.7]} 8. Bd3 {[%clk 0:02:39.5]} 8...
Ba6 {[%clk 0:02:44.9]} 9. O-O {[%clk 0:02:38.6]} 9... Ne7 {[%clk 0:02:44.1]} 10.
Na4 {[%clk 0:02:30.4]} 10... Bxd3 {[%clk 0:02:39.5]} 11. Qxd3 {[%clk 0:02:28.8]}
11... Nf5 {[%clk 0:02:36.2]} 12. Bg5 {[%clk 0:01:55.7]} 12... Be7 {[%clk
0:02:26]} 13. Bxe7 {[%clk 0:01:46.6]} 13... Qxe7 {[%clk 0:02:12.5]} 14. Nb6
{[%clk 0:01:36.4]} 14... Ra6 {[%clk 0:02:10.1]} 15. Na4 {[%clk 0:01:24.3]} 15...
O-O {[%clk 0:02:05.8]} 16. Nc5 {[%clk 0:01:13.4]} 16... Ra7 {[%clk 0:02:06.1]}
17. h3 {[%clk 0:00:58.4]} 17... Nd7 {[%clk 0:02:02.7]} 18. b4 {[%clk 0:00:55]}
18... Nxc5 {[%clk 0:01:57.6]} 19. bxc5 {[%clk 0:00:54.5]} 19... a4 {[%clk
0:01:37.1]} 20. Ra3 {[%clk 0:00:53.3]} 20... Qb7 {[%clk 0:01:29.6]} 21. c3
{[%clk 0:00:38.7]} 21... Rb8 {[%clk 0:01:19.3]} 22. Rfa1 {[%clk 0:00:34.7]}
22... Qb2 {[%clk 0:01:13.8]} 23. g4 {[%clk 0:00:32.4]} 23... Ne7 {[%clk
0:01:10.1]} 24. Ng5 {[%clk 0:00:32.1]} 24... Ng6 {[%clk 0:01:02.6]} 25. Rxa4
{[%clk 0:00:13.8]} 25... Qxa1+ {[%clk 0:01:01.5]} 26. Rxa1 {[%clk 0:00:12.1]}
26... Rxa1+ {[%clk 0:01:02.4]} 27. Kg2 {[%clk 0:00:11.3]} 27... Nf4+ {[%clk
0:01:01.6]} 0-1